Cogmind - Beta 12 @@@ ROGUE MODE // 2023.05.28 @ 22:06:41 Player: Mr Goldstein Result: Destroyed by as-87710 with Assembled Rifle Performance ------------- Evolutions (0) 0 Regions Visited (2) 400 Robots Destroyed (0) 0 Value Destroyed (10) 10 Prototype IDs (0) 0 Alien Tech Used (0) 0 Bonus (0) 0 TOTAL SCORE: 410 Bonus ------- None Cogmind --------- Core Integrity 0/250 Matter 286/300 Energy 99/100 System Corruption 0% Temperature Cool (0) Movement Core (50) Location -10/Mines Parts ------- > --- POWER (1) -------- (None) > --- PROPULSION (2) --- (None) > --- UTILITY (2) ------ (None) > --- WEAPON (2) ------- (None) > --- INVENTORY (5) ---- Rocket Launcher Peak State ------------ > --- POWER ------------ (None) > --- PROPULSION ------- (None) > --- UTILITY ---------- (None) > --- WEAPON ----------- Rocket Launcher > --- INVENTORY -------- (None) [Rating: 2] Favorites ----------- Power None Propulsion None Utility None Weapon Rocket Launcher Launcher Rocket Launcher Build | -11 -10 -10 ------- Run | Jun Mat Min Slots Evolved . | . . . Power . | . . . Propulsion . | . . . Utility . | . . . Weapon . | . . . Parts Attached 1 | . . 1 Power . | . . . Engine . | . . . Core . | . . . Reactor . | . . . Propulsion . | . . . Treads . | . . . Leg . | . . . Wheel . | . . . Hover . | . . . Flight . | . . . Utility . | . . . Device . | . . . Storage . | . . . Processor . | . . . Hackware . | . . . Protection . | . . . Artifact . | . . . Weapon 1 | . . 1 Energy Gun . | . . . Energy Cannon . | . . . Ballistic Gun . | . . . Ballistic Cannon . | . . . Launcher 1 | . . 1 Special Weapon . | . . . Impact Weapon . | . . . Slashing Weapon . | . . . Piercing Weapon . | . . . Special Melee Weapon . | . . . Unidentified Prototypes . | . . . Parts Lost . | . . . Power . | . . . Propulsion . | . . . Utility . | . . . Weapon . | . . . Highest Loss Streak . | . . . To Critical Strikes . | . . . Average Slot Usage (%) . | . . . Naked Turns 120 | . 40 80 Heaviest Build . | . . . Greatest Support 3 | 3 3 3 Greatest Overweight (x) . | . . . Average Overweight (x) . | . . . Largest Inventory Capacity 5 | 5 5 5 Average Capacity 5 | 5 5 5 Most Carried 1 | . . 1 Average Carried . | . . . Final Capacity 5 | 5 5 5 Final Carried 1 | . . 1 Class Distribution -------------------- 100% | Mutant Dominant Class ---------------- Mutant | -10/Materials Mutant | -10/Mines Resources | -11 -10 -10 ----------- Run | Jun Mat Min Matter Collected 200 | 185 . 15 Remotely . | . . . Salvage Created 22 | . . 22 Parts . | . . . Haulers Intercepted . | . . . Recyclers Shooed . | . . . Parts Field Recycled . | . . . Retrieved Matter . | . . . Parts Self-Destructed . | . . . Prevented . | . . . Kills | -11 -10 -10 ------- Run | Jun Mat Min Combat Hostiles Destroyed 4 | . . 4 AOE 4 | . . 4 Classes Destroyed 1 | . . 1 Assembled 4 | . . 4 Best Kill Streak 4 | . . 4 Combat Bots Only 4 | . . 4 Max Kills in Single Turn 3 | . . 3 Gunslinging . | . . . Exploded 3 | . . 3 Melee . | . . . Uniques/NPCs Destroyed . | . . . Combat | -11 -10 -10 -------- Run | Jun Mat Min Damage Taken 299 | . 43 256 Core 252 | . 43 209 Absorbed by Shields . | . . . Core Remaining (%) 100 | 100 . . Volleys Fired 2 | . . 2 Largest 1 | . . 1 Hottest 33 | . . 33 Shots Fired 2 | . . 2 Gun . | . . . Cannon . | . . . Launcher 2 | . . 2 Special . | . . . Kinetic . | . . . Thermal . | . . . Explosive 2 | . . 2 Electromagnetic . | . . . Robot Hit Streak . | . . . Robot Miss Streak . | . . . Penetration Max . | . . . Secondary Targets . | . . . Shots Hit Robots . | . . . Core Hits 8 | . . 8 Critical Kills . | . . . Critical Parts Destroyed . | . . . Critical Strikes . | . . . Melee Attacks . | . . . Impact . | . . . Slashing . | . . . Piercing . | . . . Sneak Attacks . | . . . Combat Hostiles . | . . . Follow-up Attacks . | . . . Damage Inflicted 258 | . . 258 Guns . | . . . Cannons . | . . . Explosions 234 | . . 234 Melee . | . . . Ramming 24 | . . 24 Kinetic . | . . . Thermal . | . . . Explosive 234 | . . 234 Electromagnetic . | . . . Impact . | . . . Slashing . | . . . Piercing . | . . . Highest Corruption . | . . . Average Corruption . | . . . Corruption Purged . | . . . Corruption Blocked . | . . . Overload Shots . | . . . Overflow Damage . | . . . Projectiles . | . . . Explosions . | . . . Melee . | . . . Knockbacks . | . . . Impact . | . . . Kinetic . | . . . Secondary . | . . . Self-Inflicted Damage 11 | . . 11 Shots . | . . . Rammed 5 | . . 5 Targets Rammed 5 | . . 5 Kicked . | . . . Crushed . | . . . Highest Temperature 7 | . 2 7 Average Temperature 4 | . 2 7 Received Heat Transfer 72 | . 42 30 Siege Activations . | . . . Robots Corrupted . | . . . Combat Hostiles . | . . . Parts Fried . | . . . Impact Corruptions . | . . . Robots Melted . | . . . Combat Hostiles . | . . . Parts Melted . | . . . Heat Transferred . | . . . Parts Sabotaged . | . . . Parts Stolen . | . . . Parts Stripped . | . . . Power Chain Reactions . | . . . Missiles Intercepted . | . . . Alert | -11 -10 -10 ------- Run | Jun Mat Min Peak Influence 53 | . 53 49 Initial 20 | . . 20 Average 28 | . 36 29 Maximum Alert Level . | . . . Low Security (%) 100 | 100 100 100 Level 1 . | . . . Level 2 . | . . . Level 3 . | . . . Level 4 . | . . . Level 5 . | . . . High Security . | . . . Max Security . | . . . Squads Dispatched 1 | . 1 . Investigation 1 | . 1 . Extermination . | . . . Reinforcement . | . . . Assault . | . . . Garrison . | . . . Intercept . | . . . Searches Triggered . | . . . Construction Impeded . | . . . Haulers Reinforced . | . . . Active Scanning Responses . | . . . Cargo Convoy Interrupts . | . . . Stealth | -11 -10 -10 --------- Run | Jun Mat Min Distress Signals . | . . . Communications Jammed . | . . . Distress Signals . | . . . Times Spotted 19 | . 5 14 Peak Tracking Total 8 | . 6 8 Tactical Retreats 1 | . . 1 Traps | -11 -10 -10 ------- Run | Jun Mat Min Traps Triggered . | . . . Indirectly . | . . . Trap Hack Attempts . | . . . Triggered . | . . . Disarmed . | . . . Reprogrammed . | . . . Reused . | . . . Traps Extracted . | . . . Installed . | . . . Triggered . | . . . Machines | -11 -10 -10 ---------- Run | Jun Mat Min Machines Disabled 1 | . . 1 Max in Single Turn 1 | . . 1 Machines Repaired . | . . . Machines Sabotaged . | . . . Overloaded Fab Kills . | . . . Hacking | -11 -10 -10 --------- Run | Jun Mat Min Machines Accessed 2 | . 2 . Terminals 1 | . 1 . Fabricators . | . . . Repair Stations . | . . . Recycling Units 1 | . 1 . Scanalyzers . | . . . Garrison Access . | . . . Total Hacks 2 | . 2 . Successful 2 | . 2 . Failed . | . . . Catastrophic . | . . . Database Lockouts . | . . . Manual 2 | . 2 . Terminals 1 | . 1 . Fabricators . | . . . Repair Stations . | . . . Recycling Units 1 | . 1 . Scanalyzers . | . . . Garrison Access . | . . . Terminal Hacks 1 | . 1 . Branch Access Points 1 | . 1 . Fabricator Hacks . | . . . Repair Station Hacks . | . . . Recycling Unit Hacks . | . . . Scanalyzer . | . . . Garrison Access Hacks . | . . . Unauthorized Hacks 1 | . 1 . Terminals . | . . . Fabricators . | . . . Repair Stations . | . . . Recycling Units 1 | . 1 . Tunnel 1 | . 1 . Scanalyzers . | . . . Garrison Access . | . . . Data Cores Recovered . | . . . Used . | . . . Hacking Detections . | . . . Full Trace Events . | . . . Feedback Events . | . . . Feedback Blocked . | . . . Robot Schematics Acquired . | . . . Robots Built . | . . . Authchips . | . . . Time . | . . . Total Robot Build Rating . | . . . Part Schematics Acquired . | . . . Parts Built . | . . . Authchips . | . . . Time . | . . . Total Part Build Rating . | . . . Parts Repaired . | . . . Time . | . . . Parts Recycled . | . . . Recycled Matter . | . . . Retrieved Matter . | . . . Retrieved Components . | . . . Parts Scanalyzed . | . . . Part Schematics Acquired . | . . . Parts Damaged . | . . . Bothacking | -11 -10 -10 ------------ Run | Jun Mat Min Used RIF Installer . | . . . Robots Hacked . | . . . Non-combat . | . . . Combat . | . . . Robot Hacks Applied . | . . . Relay Couplers Released . | . . . Fabnet Peak Effective % . | . . . Robots Rewired . | . . . Allies Hacked . | . . . Hacks Repelled . | . . . Allies | -11 -10 -10 -------- Run | Jun Mat Min Total Allies . | . . . Largest Group . | . . . Highest-Rated Group . | . . . Highest-Rated Ally . | . . . Total Orders . | . . . Ally Attacks . | . . . Total Damage . | . . . Kills . | . . . Allies Corrupted . | . . . Allies Melted . | . . . Intel | -11 -10 -10 ------- Run | Jun Mat Min Robot Analysis Total . | . . . Derelict Logs Recovered . | . . . Drone Launches . | . . . Drone Recoveries . | . . . Exploration | -11 -10 -10 ------------- Run | Jun Mat Min Turns Passed 139 | 15 40 84 Spaces Moved 254 | 30 80 144 Core 254 | 30 80 144 Treads . | . . . Legs . | . . . Wheels . | . . . Hover . | . . . Flight . | . . . Fastest Speed 50 | 50 50 50 Average Speed 50 | 50 50 50 Slowest Speed 50 | 50 50 50 Overloaded Moves . | . . . Propulsion Burnouts . | . . . Robots Hopped . | . . . Cave-ins Triggered . | . . . Exploration Rate (%) 21 | 3 23 39 Regions Visited 2 Branch Regions 1 Pre-discovered Areas 1 | . 1 . Known Exits Taken 1 | . 1 . Unknown Exits Taken 1 | 1 . . Scrap Searched . | . . . Spaces Dug 17 | . . 17 Terrain Destroyed 17 | . . 17 Melee . | . . . Projectile . | . . . AOE 17 | . . 17 Terrain Rammed . | . . . Walls Destroyed . | . . . Machines Disabled . | . . . Actions | -11 -10 -10 --------- Run | Jun Mat Min Total 262 | 29 79 154 Wait . | . . . Move 252 | 29 79 144 Hop . | . . . Pick Up 1 | . . 1 Fast Attach . | . . . Attach 1 | . . 1 Detach 1 | . . 1 Swap . | . . . Drop . | . . . Fire 2 | . . 2 Melee . | . . . Ram 5 | . . 5 Kick . | . . . Crush . | . . . Escape Stasis . | . . . Rewire . | . . . Trap . | . . . Miscellaneous . | . . . Route ------- -11/Junkyard -10/Materials (discovered 2 exits: *Min x2) -10/Mines History --------- Turn | Location | Event 5 | -11/Junkyard | Discovered new exit (range 15) 16 | -11/Junkyard | Entered Materials 26 | -10/Materials | Identified exit to Mines 56 | -10/Materials | Entered Mines 73 | -10/Mines | Received a Rocket Launcher from a helpful Derelict 85 | -10/Mines | Assembled infested the area 113 | -10/Mines | Core integrity fell below 50% 134 | -10/Mines | Core integrity fell below 20% 140 | -10/Mines | Destroyed by as-87710 with Assembled Rifle Last Messages --------------- 00071_ XC-NZU(g): "Need to get rid of a swarm? Done. Need a big hole in the wall? Done." 00072_ XC-NZU(g): "Need a small hole in the wall? Leave that to the mining laser wimps, I say!" 00073_ XC-NZU(g): "Would you like a rocket launcher? I know I would if I were you, so I'm going to lend you mine." 00073_ XC-NZU(g) slips back into the shadows. 00074_ Acquired Rocket Launcher. 00085_ ALERT: Infestation in the mines, dispatching Demolisher response squad. 00103_ T-07 Excavator is excavating. 00113_ as-13278 destroyed. 00113_ Pressure Siphon disabled. 00113_ as-76461 destroyed. 00113_ as-57472 destroyed. 00114_ as-51827 destroyed. 00119_ T-07 Excavator system corrupted by crushing effect. 00119_ T-07 Excavator knocked back. 00132_ Slammed into G-47 Trooper. 00133_ Slammed into G-34 Mercenary. Map ----- +----------------------------------------------------+ | ????## #### ##??????????????????? | | ?????### #??# ##?????????????????? | | ???????# #?## ##????????????????? | | ###????# ### #????????????????? | | ##### ## ## #???????????????? | | ##?# ##???????????????? | | # ##???###????????????????? | | ### ## ####???????????????????????? | | ??## ## ######?????????????????????? | | ???## ## #?????????????????????? | | ##?## ####### #?????????????????????? | | ## #?????# #?????????????????????? | | ##?????# #?????????????????????? | | ##??????# #?????????????????????? | | ##??????# #?????????????????????? | | ## ##??# #?????????????????????? | | ##?# #????####?????????????? | | #?# #???## ##????????????? | | #?# ##### ##???????????? | | ##?# ##??????????? | | ##??####### g #??????????? | | # ##### ##?????????## #??????????? | | # ?????####???????????## ##??????????? | | # ????????????????????## r##???????????? | | ???????????????###### #????????????? | | ???????????????# @#????????????? | | ##??????????????# r #???????????? | | ???????????? a % a #???????????? | | ?????????? ## ???????????? | | ???????????# #### #?## ??????????? | | ???????????##?????####???? ?????????? | | ??????????????????????????# ????????? | | ???????????????????????????# ???????? | | ????????????????????????????# ???????? | | ????????????????????????????? ??????? | | ?????????????????????????????# ?????? | | ??????????????????????????????# ?????? | | ???????????????????????????????# ????? | | ???????????????????????????????????????? | | ???????????????????????????????????????? | | ???????????????????????????????????????? | | ???????????????????????????????????????? | | ???????????????????????????????????????? | | ???????????????????????????????????????? | | ???????????????????????????????????????? | | ???????????????????????????????????????? | | ???????????????????????????????????????? | | ???????????????????????????????????????? | | ???????????????????????????????????????? | | ???????????????????????????????????????? | +----------------------------------------------------+ Best States ------------- Heat Dissipation 25 Energy Generation 5 Energy Capacity 100 Matter Stores 300 Matter Capacity 300 Sight Range 16 Terrain Scan Density 10 Evasion (%) 50 Item Schematics ----------------- None Robot Schematics ------------------ None Fabricated ------------ Nothing Alien Tech Used ----------------- None Achievements -------------- None Challenges ------------ None Game ------ Seed WardroneSensorCannon Manual? 0 Play Time 00:02:11 Cumulative 247.1 hours Start 2023.05.28 @ 22:05:16 End 2023.05.28 @ 22:06:41 Sessions 1 Manual Loads 0 Difficulty Rogue Special Mode None Game No. 740 Rogue 740 Adventurer 0 Explorer 0 Win Type - Total 12 Types 8/0/2/2/0/0/0/0/0 Lore% 87 Gallery% 83 Achievement% 74 Wizard Run 0 Options --------- ASCII 0 Keyboard 0 Movement Numpad Keybinds 0 Fullscreen 1 Font 16/SmallcapsGlow Map View 75x55 Tactical HUD 1 Map Filters NONE Filters NONE Steam 1 RUN: fe8ed47d-01f2-4c80-b778-1867554625b4